bitfinex-derivatives/quotes_BTCF0:USTF0_20250508
["timestamp","ask_amount","ask_price","bid_price","bid_amount"]
[1746682035439,0.174,98841.0,98840.0,0.8091771]
[1746682035644,0.376335,98841.0,98840.0,0.24]
[1746682036946,0.438335,98841.0,98840.0,0.24]
[1746682038047,0.438335,98841.0,98840.0,0.31736]
[1746682039252,0.438335,98841.0,98840.0,0.2364]
[1746682041964,0.438335,98841.0,98840.0,0.2464]
[1746682042456,0.438335,98841.0,98840.0,0.15544]
[1746682042656,0.468335,98841.0,98840.0,0.15544]
[1746682042853,0.438335,98841.0,98840.0,0.22544]
[1746682053351,0.438335,98841.0,98840.0,0.24448]
[1746682054065,0.438335,98841.0,98840.0,0.30448]
[1746682056669,0.438335,98841.0,98840.0,0.5068171]
[1746682056859,0.438335,98841.0,98840.0,0.30448]
[1746682062368,0.437335,98841.0,98840.0,0.30448]
[1746682062964,0.235,98841.0,98840.0,0.30448]
[1746682063164,0.27548,98841.0,98840.0,0.5068171]
[1746682063370,0.31596,98841.0,98840.0,0.5068171]
[1746682063970,0.38136,98841.0,98840.0,0.5068171]
[1746682064657,0.38036,98841.0,98840.0,0.5068171]
[1746682065070,0.3608,98873.0,98840.0,0.23448]
[1746682065269,0.03,98873.0,98872.0,0.3608]
[1746682065462,0.001,98886.0,98878.0,0.2022574]
[1746682065667,0.2032429,98886.0,98885.0,0.3608]
[1746682065869,0.2032429,98886.0,98885.0,0.4208]
[1746682066269,0.169,98886.0,98885.0,0.33986]
[1746682066574,0.3712429,98886.0,98885.0,0.33986]
[1746682066773,0.169,98886.0,98885.0,0.542105]
[1746682066969,0.3712429,98886.0,98885.0,0.542105]
[1746682067169,0.3712429,98886.0,98885.0,0.25894]
[1746682067674,0.3712429,98886.0,98885.0,0.30922511]
[1746682068175,0.3762429,98886.0,98885.0,0.30922511]
[1746682068375,0.3822429,98886.0,98885.0,0.31022511]
[1746682068876,0.18,98886.0,98885.0,0.31022511]
[1746682069072,0.3822429,98886.0,98885.0,0.31022511]
[1746682070074,0.3822429,98886.0,98885.0,0.31775573]
[1746682071270,0.18,98886.0,98885.0,0.52000073]
[1746682071478,0.18,98886.0,98885.0,0.49000073]
[1746682071671,0.18,98886.0,98885.0,0.80000073]
[1746682072569,0.175,98886.0,98885.0,0.80000073]
[1746682072774,0.176,98886.0,98885.0,0.80100073]
[1746682072972,0.171,98886.0,98885.0,0.80100073]
[1746682075284,0.171,98886.0,98885.0,0.87828073]
[1746682078392,0.171,98886.0,98885.0,0.97940873]
[1746682082583,0.05968,98892.0,98888.0,0.0505593]
[1746682082788,0.0505465,98914.0,98891.0,0.3608]
[1746682082989,0.0505441,98919.0,98910.0,0.9237939]
[1746682083194,0.2322,98911.0,98910.0,1.0201339]
[1746682084285,0.2322,98911.0,98910.0,0.9392339]
[1746682084889,0.168,98911.0,98910.0,0.9392339]
[1746682085080,0.173,98911.0,98910.0,0.9402339]
[1746682086187,0.177,98911.0,98910.0,0.9412339]
[1746682086489,0.2411,98911.0,98910.0,0.9412339]
[1746682086995,0.0505291,98948.0,98924.0,0.0505409]
[1746682087182,0.067,98929.0,98928.0,0.5629571]
[1746682087388,0.168,98930.0,98929.0,0.202155]
[1746682087587,0.168,98930.0,98929.0,0.302155]
[1746682087790,0.168,98930.0,98929.0,0.433755]
[1746682088789,0.172,98930.0,98929.0,0.434755]
[1746682089589,0.178,98930.0,98929.0,0.435755]
[1746682089796,0.178,98930.0,98929.0,0.645755]
[1746682090986,0.178,98930.0,98929.0,0.722995]
[1746682091189,0.172,98930.0,98929.0,0.722995]
[1746682091888,0.168,98930.0,98929.0,0.721995]
[1746682092284,0.168,98930.0,98929.0,0.731995]
[1746682092490,0.0645,98934.0,98933.0,0.2021469]
[1746682092688,0.0645,98934.0,98933.0,0.5321469]
[1746682093198,0.2325,98934.0,98933.0,0.5321469]
[1746682094291,0.2335,98934.0,98933.0,0.5341469]
[1746682098097,0.2335,98934.0,98933.0,0.58405823]
[1746682107110,0.2977,98934.0,98933.0,0.58405823]
[1746682109912,0.2977,98934.0,98933.0,1.30565823]
[1746682113019,0.2977,98934.0,98933.0,1.38277823]
[1746682114122,0.2977,98934.0,98933.0,1.10351133]
[1746682114318,0.2021714,98921.0,98920.0,0.2315228]
[1746682114518,0.2021714,98921.0,98920.0,0.32185134]
[1746682114823,0.2321714,98921.0,98920.0,0.28185134]
[1746682115219,0.4001714,98921.0,98920.0,0.20097134]
[1746682115418,0.5347714,98921.0,98920.0,0.20097134]
[1746682116025,0.5367714,98921.0,98920.0,0.20097134]
[1746682116619,0.3336,98921.0,98920.0,0.20097134]
[1746682116915,0.3046,98921.0,98920.0,0.33962194]
[1746682117117,0.3046,98921.0,98920.0,0.35962194]
[1746682117317,0.3046,98921.0,98920.0,0.27872194]
[1746682118126,0.3046,98921.0,98920.0,0.3092934]
[1746682118314,0.3036,98921.0,98920.0,0.2293934]
[1746682119027,0.3026,98921.0,98920.0,0.2313934]
[1746682119218,0.3026,98921.0,98920.0,0.06967]
[1746682119420,0.3026,98921.0,98920.0,0.3018434]
[1746682119618,0.3026,98921.0,98920.0,0.2918434]
[1746682120918,0.3026,98921.0,98920.0,0.34265024]
[1746682121726,0.3026,98921.0,98920.0,0.34165024]
[1746682122027,0.3026,98921.0,98920.0,0.34265024]
[1746682122227,0.3026,98921.0,98920.0,0.35265024]
[1746682123128,0.3026,98921.0,98920.0,0.35065024]
[1746682123328,0.5047714,98921.0,98920.0,0.08280684]
[1746682123627,0.5047714,98921.0,98920.0,0.15996684]
[1746682124728,0.5047714,98921.0,98920.0,0.15896684]
[1746682124932,0.5057714,98921.0,98920.0,0.15896684]
[1746682125430,0.5047714,98921.0,98920.0,0.15896684]
[1746682125830,0.5047714,98921.0,98920.0,0.15796684]
[1746682126022,0.5057714,98921.0,98920.0,0.15796684]
[1746682126922,0.5067714,98921.0,98920.0,0.15796684]
[1746682130329,0.5067714,98921.0,98920.0,0.12706684]
[1746682130532,0.5067714,98921.0,98920.0,0.11706684]
[1746682131433,0.5067714,98921.0,98920.0,0.16642798]
[1746682136238,0.5067714,98921.0,98920.0,0.52722798]
[1746682139040,0.5067714,98921.0,98920.0,0.16642798]
[1746682139244,0.5067714,98921.0,98920.0,0.52722798]
[1746682141238,0.5067714,98921.0,98920.0,0.52340798]
[1746682142738,0.5067714,98921.0,98920.0,0.72558138]
[1746682143245,0.3046,98921.0,98920.0,0.72558138]
[1746682143546,0.3046,98921.0,98920.0,0.79468138]
[1746682144044,0.2021426,98936.0,98920.0,1.25634114]
[1746682144239,0.0678,98931.0,98930.0,0.202153]
[1746682144438,0.0678,98931.0,98930.0,0.752953]
[1746682145240,0.2358,98931.0,98930.0,0.752953]
[1746682145749,0.2388,98931.0,98930.0,0.753953]
[1746682146141,0.171,98931.0,98930.0,0.703953]
[1746682146345,0.171,98931.0,98930.0,0.763953]
[1746682146648,0.173,98931.0,98930.0,0.763953]
[1746682148148,0.005,98931.0,98930.0,0.763953]
[1746682149241,0.173,98931.0,98930.0,0.763953]
[1746682149442,0.173,98931.0,98930.0,0.813953]
[1746682149843,0.6909,98978.0,98938.0,0.0505339]
[1746682150042,0.169,98946.0,98945.0,0.5629223]
[1746682150246,0.169,98946.0,98945.0,0.6729223]
[1746682151154,0.17,98946.0,98945.0,0.6729223]
[1746682151450,0.172,98946.0,98945.0,0.6729223]
[1746682152037,0.172,98946.0,98945.0,0.9392223]
[1746682152646,0.173,98946.0,98945.0,0.9392223]
[1746682152841,0.173,98946.0,98945.0,1.27668165]
[1746682153044,0.173,98946.0,98945.0,1.00668165]
[1746682154150,0.171,98946.0,98945.0,1.01668165]
[1746682154452,0.169,98946.0,98945.0,1.01768165]
[1746682157046,0.169,98946.0,98945.0,0.65688165]
[1746682157253,0.169,98946.0,98945.0,1.37848165]
[1746682159348,0.08086,98952.0,98947.0,0.0505292]
[1746682159550,0.08086,98952.0,98951.0,0.2021101]
[1746682159852,0.08086,98952.0,98951.0,0.5321101]
[1746682160253,0.24886,98952.0,98951.0,0.5321101]
[1746682160454,0.24986,98952.0,98951.0,0.6694101]
[1746682160656,0.25086,98952.0,98951.0,0.6694101]
[1746682161353,0.25186,98952.0,98951.0,0.6694101]
[1746682162157,0.25186,98952.0,98951.0,0.6025101]
[1746682162457,0.25286,98952.0,98951.0,0.6025101]
[1746682163254,0.25286,98952.0,98951.0,1.3241101]
[1746682165057,0.38486,98952.0,98951.0,1.3241101]
[1746682174760,0.38286,98952.0,98951.0,1.3261101]
[1746682175272,0.38286,98952.0,98951.0,1.3271101]
[1746682182273,0.38286,98952.0,98951.0,0.9663101]
[1746682186672,0.38286,98952.0,98951.0,0.7642]
[1746682186873,0.38286,98952.0,98951.0,0.9663101]
[1746682190583,0.38286,98952.0,98951.0,1.3271101]
[1746682190988,0.38286,98952.0,98951.0,0.6055101]
[1746682191287,0.38286,98952.0,98951.0,1.3271101]
[1746682196990,0.38286,98952.0,98951.0,1.13152]
[1746682199095,0.38286,98952.0,98951.0,0.77072]
[1746682199485,0.38286,98952.0,98951.0,0.9728301]
[1746682203995,0.38286,98952.0,98951.0,1.0464301]
[1746682205595,0.38286,98952.0,98951.0,1.0364301]
[1746682205784,0.38286,98952.0,98951.0,1.2564301]
[1746682206996,0.38286,98952.0,98951.0,1.37410148]
[1746682208290,0.302,98952.0,98951.0,1.37410148]
[1746682210600,0.17,98952.0,98951.0,1.37410148]
[1746682211001,0.17,98952.0,98951.0,1.38410148]
[1746682213700,0.17,98952.0,98951.0,1.23198148]
[1746682213893,0.17,98952.0,98951.0,1.30890148]
[1746682214408,0.3116,98952.0,98951.0,1.30890148]
[1746682215201,0.3116,98952.0,98951.0,1.29890148]
[1746682215407,0.3116,98952.0,98951.0,1.45890148]
[1746682216506,0.3116,98952.0,98951.0,1.45690148]
[1746682216807,0.3116,98952.0,98951.0,1.45890148]
[1746682219207,0.1436,98952.0,98951.0,1.45890148]
[1746682221104,0.3116,98952.0,98951.0,1.45890148]
[1746682233319,0.3116,98952.0,98951.0,1.09810148]
[1746682233518,0.3116,98952.0,98951.0,1.81970148]
[1746682237319,0.3116,98952.0,98951.0,1.09810148]
[1746682237519,0.3116,98952.0,98951.0,1.81970148]
[1746682241022,0.3116,98952.0,98951.0,1.46707138]
[1746682241213,0.513708,98952.0,98951.0,0.7716]
[1746682241420,0.864768,98952.0,98951.0,0.6357]
[1746682241622,0.614768,98952.0,98951.0,0.6357]
[1746682242219,0.614768,98952.0,98951.0,0.55484]
[1746682242411,0.614768,98952.0,98951.0,0.7716]
[1746682242818,0.624768,98952.0,98951.0,0.7316]
[1746682243015,0.624768,98952.0,98951.0,0.6538]
[1746682243227,0.624768,98952.0,98951.0,0.7316]
[1746682243419,1.124768,98952.0,98951.0,0.7316]
[1746682244126,1.124768,98952.0,98951.0,0.3708]
[1746682246531,1.023708,98952.0,98951.0,0.3708]
[1746682247328,1.023708,98952.0,98951.0,0.28992]
[1746682253240,1.023708,98952.0,98951.0,0.0778]
[1746682255053,0.2021121,98950.0,98949.0,0.3608]
[1746682255253,0.2321121,98950.0,98949.0,0.43796]
[1746682255953,0.7321121,98950.0,98949.0,0.43796]
[1746682256152,0.9001121,98950.0,98949.0,0.43796]
[1746682256354,0.9001121,98950.0,98949.0,0.43896]
[1746682256554,0.9001121,98950.0,98949.0,0.44896]
[1746682256745,0.9001121,98950.0,98949.0,0.44996]
[1746682258258,0.9001121,98950.0,98949.0,0.36908]
[1746682259856,0.9001121,98950.0,98949.0,0.08916]
[1746682260950,0.9001121,98950.0,98949.0,0.2912742]
[1746682261357,0.9001121,98950.0,98949.0,0.4364542]
[1746682262062,0.8701121,98950.0,98949.0,0.23434]
[1746682267063,0.8801121,98950.0,98949.0,0.23434]
[1746682267261,0.8801121,98950.0,98949.0,0.15994]
[1746682269960,0.8801121,98950.0,98949.0,0.08278]
[1746682270160,0.8801121,98950.0,98949.0,0.15994]
[1746682270765,0.8701121,98950.0,98949.0,0.22994]
[1746682272267,0.8701121,98950.0,98949.0,0.18906]
[1746682275469,0.8701121,98950.0,98949.0,0.18716]
[1746682276161,0.8701121,98950.0,98949.0,0.26036]
[1746682281077,0.8701121,98950.0,98949.0,0.18716]
[1746682283364,0.8701121,98950.0,98949.0,0.18344]
[1746682284270,0.668,98950.0,98949.0,0.18344]
[1746682284473,0.668,98950.0,98949.0,0.5755542]
[1746682284775,0.668,98950.0,98949.0,0.5719942]
[1746682284975,0.668,98950.0,98949.0,0.6489142]
[1746682285173,0.668,98950.0,98949.0,0.5826342]
[1746682285375,0.668,98950.0,98949.0,0.6180542]
[1746682285574,0.668,98950.0,98949.0,0.5680542]
[1746682285762,0.678,98950.0,98949.0,0.5680542]
[1746682286368,0.668,98950.0,98949.0,0.5680542]
[1746682287268,0.668,98950.0,98949.0,0.4871942]
[1746682287469,0.698,98950.0,98949.0,0.4871942]
[1746682292273,0.7755,98950.0,98949.0,0.4871942]
[1746682292976,0.7455,98950.0,98949.0,0.28508]
[1746682293572,0.7455,98950.0,98949.0,0.4871942]
[1746682293771,0.7455,98950.0,98949.0,0.5716942]
[1746682294477,0.7455,98950.0,98949.0,0.9324942]
[1746682298385,0.7455,98950.0,98949.0,0.65678]
[1746682298681,1.0209121,98950.0,98949.0,0.65678]
[1746682299177,1.0209121,98950.0,98949.0,0.58228]
[1746682299382,1.0209121,98950.0,98949.0,0.57228]
[1746682299570,1.0309121,98950.0,98949.0,0.57228]
[1746682302983,1.0309121,98950.0,98949.0,0.21148]
[1746682303172,1.0309121,98950.0,98949.0,0.57228]
[1746682305881,1.0309121,98950.0,98949.0,0.49536]
[1746682306190,1.0309121,98950.0,98949.0,0.57228]
[1746682308286,1.0309121,98950.0,98949.0,0.57328]
[1746682308683,1.0309121,98950.0,98949.0,0.57228]
[1746682308981,1.0309121,98950.0,98949.0,0.57328]
[1746682309990,1.0309121,98950.0,98949.0,0.57228]
[1746682310286,0.8629121,98950.0,98949.0,0.57228]
[1746682312690,0.8629121,98950.0,98949.0,0.49536]
[1746682312891,0.8629121,98950.0,98949.0,0.57228]
[1746682314481,0.8639121,98950.0,98949.0,0.57228]
[1746682315180,0.8649121,98950.0,98949.0,0.57228]
[1746682315589,0.8639121,98950.0,98949.0,0.57228]
[1746682315789,0.8649121,98950.0,98949.0,0.57228]
[1746682315992,0.8639121,98950.0,98949.0,0.57228]
[1746682316289,0.8649121,98950.0,98949.0,0.57228]
[1746682316894,0.8649121,98950.0,98949.0,0.49536]
[1746682317086,0.8649121,98950.0,98949.0,0.57264]
[1746682317893,0.8649121,98950.0,98949.0,0.49536]
[1746682318083,0.2021366,98938.0,98937.0,0.3608]
[1746682318387,0.2321366,98938.0,98937.0,0.44808]
[1746682318594,0.2321366,98938.0,98937.0,0.08728]
[1746682318996,0.3818366,98938.0,98937.0,0.08728]
[1746682320093,0.3818366,98938.0,98937.0,0.09493286]
[1746682320593,0.3818366,98938.0,98937.0,0.09693286]
[1746682320990,0.3818366,98938.0,98937.0,0.09893286]
[1746682321192,0.3818366,98938.0,98937.0,0.02165286]
[1746682321491,0.48290861,98938.0,98937.0,0.014]
[1746682321998,0.98290861,98938.0,98937.0,0.014]
[1746682322299,0.2021387,98937.0,98936.0,0.01042]
[1746682322490,0.33321471,98937.0,98936.0,0.03042]
[1746682322690,0.48201471,98937.0,98936.0,0.03042]
[1746682323594,0.98201471,98937.0,98936.0,0.03042]
[1746682323890,0.98201471,98937.0,98936.0,0.03242]
[1746682325194,0.98201471,98937.0,98936.0,0.024]
[1746682325383,0.0505376,98932.0,98925.0,0.00762254]
[1746682325589,0.2021734,98921.0,98919.0,0.3608]
[1746682325892,0.4259734,98920.0,98919.0,0.5629755]
[1746682326094,0.4559734,98920.0,98919.0,0.5629755]
[1746682326393,0.4559734,98920.0,98919.0,0.4820755]
[1746682327291,0.4559734,98920.0,98919.0,0.51822126]
[1746682327493,0.4569734,98920.0,98919.0,0.52222126]
[1746682327798,0.4569734,98920.0,98919.0,0.32004576]
[1746682328193,0.4579734,98920.0,98919.0,0.32504576]
[1746682329394,0.4579734,98920.0,98919.0,0.33249545]
[1746682335693,0.4579734,98920.0,98915.0,0.00101096]
[1746682335694,0.2021816,98916.0,98915.0,0.00101096]
[1746682335899,0.2022123,98901.0,98900.0,0.00151672]
[1746682336099,0.2022123,98901.0,98900.0,0.61530871]
[1746682336300,0.2022123,98901.0,98900.0,0.49789672]
[1746682336593,0.2022123,98901.0,98900.0,0.57517672]
[1746682336798,0.3532123,98901.0,98900.0,0.57517672]
[1746682337101,0.3542123,98901.0,98900.0,0.58117672]
[1746682337908,0.3552123,98901.0,98900.0,0.61961621]
[1746682338306,0.3552123,98901.0,98900.0,0.62716503]
[1746682341103,0.3552123,98901.0,98900.0,0.59172554]
[1746682341901,0.3552123,98901.0,98900.0,0.62738097]
[1746682342403,0.2768123,98901.0,98900.0,0.62738097]
[1746682342602,0.2768123,98901.0,98900.0,0.82959527]
[1746682342903,0.0746,98901.0,98900.0,0.82959527]
[1746682343107,0.002,98901.0,98900.0,1.04759527]
[1746682345607,0.002,98901.0,98900.0,1.12569527]
[1746682348510,0.2021869,98914.0,98903.0,0.0505516]
[1746682348712,0.2021869,98914.0,98913.0,0.9237877]
[1746682348905,0.2021702,98922.0,98921.0,0.2021714]
[1746682349108,0.2021702,98922.0,98921.0,0.9480514]
[1746682349398,0.2021702,98922.0,98921.0,0.8671514]
[1746682350406,0.2031702,98922.0,98921.0,0.8691514]
[1746682350707,0.002,98922.0,98921.0,0.8711514]
[1746682351506,0.0015,98930.0,98929.0,0.202155]
[1746682351709,0.0015,98930.0,98929.0,0.792955]
[1746682352209,0.0015,98930.0,98929.0,0.960955]
[1746682352605,0.0025,98930.0,98929.0,0.962955]
[1746682353008,0.08088,98937.0,98929.0,0.972955]
[1746682353211,0.2830199,98937.0,98936.0,0.2021407]
[1746682353414,0.2830199,98937.0,98936.0,0.3421407]
[1746682353919,0.0078,98946.0,98945.0,0.2021223]
[1746682354105,0.0078,98946.0,98945.0,0.4572023]
[1746682354316,0.2099207,98946.0,98945.0,0.4167623]
[1746682354506,0.2099207,98946.0,98945.0,0.25508]
[1746682355223,0.2907807,98946.0,98945.0,0.08708]
[1746682355425,0.2907807,98946.0,98945.0,0.12326812]
[1746682356221,0.2907807,98946.0,98945.0,0.29126812]
[1746682356424,0.2849807,98946.0,98945.0,0.29226812]
[1746682356622,0.2849807,98946.0,98945.0,0.44586812]
[1746682357015,0.2869807,98946.0,98945.0,0.44686812]
[1746682357228,0.2869807,98946.0,98945.0,0.27886812]
[1746682358525,0.2969807,98946.0,98945.0,0.27886812]
[1746682359526,0.2969807,98946.0,98945.0,0.63966812]
[1746682360025,0.2969807,98946.0,98945.0,0.84179042]
[1746682360233,0.2969807,98946.0,98945.0,0.99979042]
[1746682360924,0.09486,98946.0,98945.0,0.99979042]
[1746682361124,0.2969803,98946.0,98945.0,0.99979042]
[1746682361324,0.08486,98946.0,98945.0,1.00979042]
[1746682361523,0.08486,98946.0,98945.0,1.04979042]
[1746682363635,0.08486,98946.0,98945.0,1.07979042]
[1746682366122,0.2869803,98946.0,98945.0,0.72402812]
[1746682366325,0.4299803,98946.0,98945.0,0.72402812]
[1746682366536,0.4299803,98946.0,98945.0,0.64698812]
[1746682366834,0.4299803,98946.0,98945.0,0.72402812]
[1746682367030,0.4299803,98946.0,98945.0,0.6108]
[1746682367229,0.9218443,98946.0,98945.0,0.032]
[1746682367427,0.9218443,98946.0,98945.0,0.002]
[1746682367830,0.2021264,98943.0,98942.0,0.07704]
[1746682368026,0.2321264,98943.0,98942.0,0.07704]
[1746682368333,0.2021428,98935.0,98934.0,0.0314571]
[1746682368638,0.2526758,98936.0,98935.0,0.07704]
[1746682368931,0.2826758,98936.0,98935.0,0.07704]
[1746682369534,0.2021428,98935.0,98934.0,0.03541022]
[1746682369732,0.2331428,98935.0,98934.0,0.07804]
[1746682370136,0.2321428,98935.0,98934.0,0.07704]
[1746682370638,0.202153,98930.0,98929.0,0.03557213]
[1746682370839,0.232153,98930.0,98929.0,0.26]
[1746682371236,0.232153,98930.0,98929.0,0.17912]
[1746682371542,0.202155,98929.0,98928.0,0.07704]
[1746682371839,0.292955,98929.0,98928.0,0.07704]
[1746682372940,0.293955,98929.0,98928.0,0.07804]
[1746682373242,0.294955,98929.0,98928.0,0.08004]
[1746682373441,0.294955,98929.0,98928.0,0.11674956]
[1746682374338,0.294955,98929.0,98928.0,0.08004]
[1746682374541,0.396039,98929.0,98928.0,0.08004]
[1746682374734,0.2021816,98916.0,98915.0,0.43784]
[1746682374933,0.2321816,98916.0,98915.0,0.43784]
[1746682375332,0.2321816,98916.0,98915.0,0.07704]
[1746682375838,0.2331816,98916.0,98915.0,0.08104]
[1746682376232,0.2331816,98916.0,98915.0,0.004]
[1746682376940,0.2341816,98916.0,98915.0,0.007]
[1746682382139,0.7341816,98916.0,98915.0,0.007]
[1746682385346,0.7341816,98916.0,98915.0,0.2091836]
[1746682385347,0.8072816,98916.0,98915.0,0.2091836]
[1746682385546,0.7041816,98916.0,98915.0,0.5799836]
[1746682386240,0.7041816,98916.0,98915.0,0.6670836]
[1746682386543,0.502,98916.0,98915.0,0.7170836]
[1746682386733,0.2041816,98916.0,98915.0,0.7170836]
[1746682387246,0.2850816,98916.0,98915.0,0.7170836]
[1746682388468,0.2850816,98916.0,98915.0,0.5888]
[1746682390550,0.2850816,98916.0,98915.0,0.7909836]
[1746682390746,0.2850816,98916.0,98915.0,0.5888]
[1746682390951,0.3150816,98916.0,98915.0,0.305]
[1746682391153,0.2850816,98916.0,98915.0,0.137]
[1746682391451,0.4656816,98916.0,98915.0,0.137]
[1746682392550,0.4656816,98916.0,98915.0,0.06]
[1746682392750,0.4656816,98916.0,98915.0,0.01]
[1746682393537,0.2021877,98913.0,98912.0,0.00151649]
[1746682393749,0.2321877,98913.0,98912.0,0.00151649]
[1746682394045,0.2321877,98913.0,98912.0,0.05082989]
[1746682394837,0.2331877,98913.0,98912.0,0.05082989]
[1746682395044,0.2341877,98913.0,98912.0,0.05082989]
[1746682395249,0.2021918,98911.0,98910.0,0.04692989]
[1746682395450,0.2121918,98911.0,98910.0,0.04692989]
[1746682395948,0.2851918,98911.0,98910.0,0.04692989]
[1746682396144,0.2851918,98911.0,98910.0,0.09766625]
[1746682396551,0.2861918,98911.0,98910.0,0.09766625]
[1746682396755,0.2861918,98911.0,98910.0,0.04692989]
[1746682397341,0.202198,98908.0,98907.0,0.04192989]
[1746682397546,0.202198,98908.0,98907.0,0.24892989]
[1746682397749,0.202198,98908.0,98907.0,0.17192989]
[1746682397948,0.202198,98908.0,98907.0,0.207]
[1746682398456,0.203198,98908.0,98907.0,0.25655327]
[1746682398954,0.204198,98908.0,98907.0,0.25655327]
[1746682399250,0.234198,98908.0,98907.0,0.09865327]
[1746682399450,0.234198,98908.0,98907.0,0.04955327]
[1746682399653,0.202202,98906.0,98905.0,0.077]
[1746682399851,0.232202,98906.0,98905.0,0.077]
[1746682400248,0.2022082,98903.0,98902.0,0.0718]
[1746682400551,0.2322082,98903.0,98902.0,0.0718]
[1746682401349,0.2322082,98903.0,98902.0,0.12323914]
[1746682401750,0.2332082,98903.0,98902.0,0.12323914]
[1746682402550,0.2342082,98903.0,98902.0,0.12323914]
[1746682404358,0.2342082,98903.0,98902.0,0.20053914]
[1746682406362,0.2342082,98903.0,98900.0,0.05658464]
[1746682406363,0.2022123,98901.0,98900.0,0.05658464]
[1746682406551,0.2322123,98901.0,98900.0,0.05658464]
[1746682406959,0.2322123,98901.0,98900.0,0.13478464]
[1746682407165,0.3106123,98901.0,98900.0,0.13478464]
[1746682407662,0.3116123,98901.0,98900.0,0.13478464]
[1746682407960,0.3116123,98901.0,98900.0,0.18601776]
[1746682408170,0.3126123,98901.0,98900.0,0.18601776]
[1746682409253,0.3126123,98901.0,98900.0,0.05867086]
[1746682409458,0.3126123,98901.0,98900.0,0.00743774]
[1746682409655,0.2022184,98898.0,98897.0,0.077]
[1746682409855,0.2322184,98898.0,98897.0,0.197]
[1746682410359,0.7322184,98898.0,98897.0,0.11608]
[1746682411058,0.7332184,98898.0,98897.0,0.11608]
[1746682411264,0.7332184,98898.0,98897.0,0.08647761]
[1746682411561,0.7342184,98898.0,98897.0,0.08647761]
[1746682412263,0.7342184,98898.0,98897.0,0.25447761]
[1746682412562,0.7342184,98898.0,98897.0,0.26195]
[1746682413462,0.7342184,98898.0,98897.0,0.21063239]
[1746682414367,0.7342184,98898.0,98897.0,0.30053452]
[1746682416364,0.7342184,98898.0,98897.0,0.21961452]
[1746682417063,0.7342184,98898.0,98897.0,0.16879239]
[1746682417565,0.7342184,98898.0,98897.0,0.21992294]
[1746682418053,0.7342184,98898.0,98897.0,0.16879239]
[1746682419265,0.7342184,98898.0,98897.0,0.04655239]
[1746682419467,0.7342184,98898.0,98897.0,0.05413171]
[1746682419660,0.7342184,98898.0,98897.0,0.00757932]
[1746682419860,0.2022266,98894.0,98893.0,0.12730138]
[1746682420059,0.2022266,98894.0,98893.0,0.18730138]
[1746682420867,0.2770266,98894.0,98893.0,0.137]
[1746682421170,0.2790266,98894.0,98893.0,0.137]
[1746682421664,0.3090266,98894.0,98893.0,0.06]
[1746682421859,0.2022429,98886.0,98885.0,0.00101127]
[1746682422163,0.2322429,98886.0,98885.0,0.05086773]
[1746682422366,0.202245,98885.0,98884.0,0.40164773]
[1746682422568,0.297045,98885.0,98884.0,0.40164773]
[1746682422767,0.297045,98885.0,98884.0,0.33074773]
[1746682423061,0.297045,98885.0,98884.0,0.43074773]
[1746682423459,0.297045,98885.0,98884.0,0.48013905]
[1746682423862,0.297045,98885.0,98884.0,0.4878726]
[1746682424060,0.298045,98885.0,98884.0,0.4878726]
[1746682424260,0.298045,98885.0,98884.0,0.15712487]
[1746682424460,0.798045,98885.0,98884.0,0.15712487]
[1746682424961,0.724245,98885.0,98884.0,0.23442487]
[1746682425156,0.704245,98885.0,98884.0,0.55477187]
[1746682425863,0.204245,98885.0,98884.0,0.55477187]
[1746682426170,0.204245,98885.0,98884.0,0.72277187]
[1746682426469,0.204245,98885.0,98884.0,0.73277187]
[1746682426867,0.204245,98885.0,98884.0,0.60752487]
[1746682427163,0.204245,98885.0,98884.0,0.56706487]
[1746682427471,0.204245,98885.0,98884.0,0.74752487]
[1746682428674,0.204245,98885.0,98884.0,0.94977187]
[1746682428872,0.204245,98885.0,98884.0,0.59242487]
[1746682429074,0.204245,98885.0,98884.0,0.66942487]
[1746682429371,0.204245,98885.0,98884.0,0.58850487]
[1746682429770,0.204245,98885.0,98884.0,0.79075187]
[1746682430373,0.204245,98885.0,98884.0,0.79848314]
[1746682430772,0.204245,98885.0,98884.0,0.64700436]
[1746682432577,0.204245,98885.0,98884.0,0.84925136]
[1746682433065,0.204245,98885.0,98884.0,0.64700436]
[1746682433773,0.204245,98885.0,98884.0,0.84925136]
[1746682437175,0.204245,98885.0,98884.0,0.77225136]
[1746682437367,0.204245,98885.0,98884.0,0.84921136]
[1746682439380,0.002,98885.0,98884.0,0.84921136]
[1746682439671,0.204245,98885.0,98884.0,1.02921136]
[1746682440072,0.204245,98885.0,98884.0,1.13033936]
[1746682440073,0.002,98885.0,98884.0,1.13033936]
[1746682440477,0.0505517,98904.0,98884.0,1.13033936]
[1746682440478,0.2022148,98902.0,98901.0,0.2022102]
[1746682440669,0.2022148,98902.0,98901.0,1.0899702]
[1746682441274,0.2022148,98902.0,98901.0,1.1770702]
[1746682441782,0.0765,98903.0,98902.0,0.2022102]
[1746682441981,0.0765,98903.0,98902.0,0.5222102]
[1746682442172,0.0765,98903.0,98902.0,0.6902102]
[1746682442981,0.0775,98903.0,98902.0,0.6902102]
[1746682443374,0.0775,98903.0,98902.0,0.6912102]
[1746682443680,0.0785,98903.0,98902.0,0.6912102]
[1746682444572,0.2807082,98903.0,98902.0,0.6912102]
[1746682444876,0.0785,98903.0,98902.0,0.6912102]
[1746682445380,0.2807082,98903.0,98902.0,0.6912102]
[1746682448083,0.2807082,98903.0,98902.0,1.0520102]
[1746682449485,0.0785,98903.0,98902.0,1.0520102]
[1746682452588,0.0785,98903.0,98902.0,1.1289702]
[1746682454381,0.2807082,98903.0,98902.0,0.92676]
[1746682454581,0.4263082,98903.0,98902.0,0.92676]
[1746682454781,0.4263082,98903.0,98902.0,0.90676]
[1746682455183,0.4263082,98903.0,98902.0,0.8298]
[1746682455384,0.3548082,98903.0,98902.0,0.90676]
[1746682456490,0.3548082,98903.0,98902.0,1.1089702]
[1746682457083,0.3548082,98903.0,98902.0,0.7481702]
[1746682457490,0.3548082,98903.0,98902.0,1.1089702]
[1746682458886,0.0785,98903.0,98902.0,1.1089702]
[1746682459091,0.0785,98903.0,98902.0,1.3089702]
[1746682459683,0.0785,98903.0,98902.0,1.3827702]